bitfinex-derivatives/quotes_SOLF0:USTF0_20220106
["timestamp","ask_amount","ask_price","bid_price","bid_amount"]
[1641502467842,3.97355272,151.51,151.42,0.68143762]
[1641502468044,61.9413,151.5,151.42,0.68143762]
[1641502468745,3.97355272,151.49,151.42,0.68143762]
[1641502469746,4.0,151.48,151.42,0.68143762]
[1641502470444,27.66479,151.46,151.41,5.59936253]
[1641502470643,33.09679,151.46,151.41,5.59936253]
[1641502472347,27.66479,151.46,151.41,5.59936253]
[1641502474248,61.9413,151.5,151.41,5.59936253]
[1641502474648,27.66479,151.49,151.41,5.59936253]
[1641502475550,3.9733888,151.48,151.41,5.59936253]
[1641502477151,27.66479,151.47,151.41,5.59936253]
[1641502477353,32.81179,151.47,151.41,5.59936253]
[1641502478652,27.66479,151.47,151.41,5.59936253]
[1641502478851,27.66479,151.47,151.39,0.68143762]
[1641502479052,63.4699,151.46,151.39,0.68143762]
[1641502482456,63.4699,151.46,151.43,13.96431329]
[1641502482656,17.96431329,151.5,151.43,13.96431329]
[1641502482855,85.37181329,151.5,151.43,13.96431329]
[1641502483257,27.66479,151.46,151.43,13.96431329]
[1641502485458,27.66479,151.46,151.42,13.96431329]
[1641502486360,27.66479,151.46,151.41,13.96431329]
[1641502486559,41.62910329,151.48,151.41,13.96431329]
[1641502486760,41.62910329,151.48,151.41,19.72431329]
[1641502486960,27.66479,151.48,151.42,13.96431329]
[1641502488161,3.97377524,151.47,151.42,0.68143762]
[1641502488764,3.97377524,151.47,151.41,13.96431329]
[1641502494370,3.97377524,151.47,151.42,13.96431329]
[1641502495774,3.97377524,151.47,151.42,19.60631329]
[1641502496774,7.97377524,151.47,151.4,28.34622762]
[1641502496979,6.60131366,151.41,151.34,55.84186799]
[1641502497978,27.66479,151.37,151.34,55.84186799]
[1641502498183,31.66479,151.37,151.33,4.65819202]
[1641502498380,4.0,151.35,151.33,4.65819202]
[1641502498581,5.509,151.35,151.33,4.65819202]
[1641502498983,5.509,151.35,151.25,37.40479]
[1641502499281,5.509,151.35,151.31,4.65909808]
[1641502499683,14.14351055,151.36,151.31,4.65909808]
[1641502500687,14.14351055,151.36,151.27,4.0]
[1641502500885,4.65890801,151.32,151.27,4.0]
[1641502501086,4.65890801,151.32,151.26,94.2119]
[1641502501486,4.65890801,151.32,151.26,90.2119]
[1641502501786,4.65890801,151.32,151.26,65.2369]
[1641502502388,4.65890801,151.32,151.25,41.40479]
[1641502502588,4.65890801,151.31,151.25,41.40479]
[1641502503189,4.65890801,151.31,151.25,37.40479]
[1641502503388,4.65890801,151.31,151.27,4.0]
[1641502504190,4.65890801,151.31,151.25,37.40479]
[1641502504392,11.55790801,151.31,151.25,37.40479]
[1641502504792,6.899,151.31,151.25,37.40479]
[1641502505895,11.55790801,151.31,151.23,68.0838]
[1641502506196,11.55790801,151.31,151.24,27.66479]
[1641502506996,4.65890801,151.29,151.24,27.66479]
[1641502509399,10.19790801,151.29,151.23,9.7]
[1641502511503,4.65890801,151.27,151.23,9.7]
[1641502512501,4.65890801,151.27,151.23,14.19347498]
[1641502512702,4.65890801,151.27,151.23,4.49347498]
[1641502514102,5.139,151.28,151.21,9.84]
[1641502514103,4.65890801,151.25,151.21,9.84]
[1641502514704,9.20990801,151.25,151.21,9.84]
[1641502515405,4.551,151.25,151.21,9.84]
[1641502515805,4.551,151.25,151.2,4.70748439]
[1641502516415,27.66479,151.24,151.2,4.70748439]
[1641502517407,31.66479,151.24,151.2,4.70748439]
[1641502517607,32.32369801,151.24,151.17,13.49953926]
[1641502518808,27.66479,151.24,151.23,4.66151703]
[1641502519708,37.18137384,151.29,151.22,4.66163689]
[1641502519909,37.18137384,151.29,151.23,4.0]
[1641502520109,37.18137384,151.29,151.22,4.66163689]
[1641502520708,37.18137384,151.29,151.21,32.29079]
[1641502520909,27.66479,151.3,151.27,4.66043219]
[1641502521708,27.66479,151.3,151.22,4.70748439]
[1641502521911,27.66479,151.3,151.28,4.65999956]
[1641502522810,27.66479,151.3,151.23,90.7355]
[1641502523109,27.66479,151.3,151.22,4.70748439]
[1641502523311,27.66479,151.3,151.28,4.0]
[1641502523512,27.66479,151.3,151.28,10.97]
[1641502523709,22.04787764,151.3,151.28,6.97]
[1641502524312,22.04787764,151.3,151.23,94.11569578]
[1641502524511,28.66287764,151.3,151.24,27.66479]
[1641502525110,28.66287764,151.3,151.24,41.16432926]
[1641502525910,28.66287764,151.3,151.24,27.66479]
[1641502526111,13.93216807,151.29,151.25,4.65988605]
[1641502527014,7.049,151.29,151.24,27.66479]
[1641502527813,13.98012995,151.28,151.24,32.32483332]
[1641502528815,13.98012995,151.27,151.24,27.66479]
[1641502529816,13.98012995,151.25,151.24,27.66479]
[1641502530016,13.98012995,151.25,151.24,20.20738703]
[1641502530416,37.18137384,151.28,151.24,20.20738703]
[1641502531416,13.98153374,151.27,151.24,24.86789828]
[1641502532619,13.98153374,151.26,151.22,4.66051125]
[1641502533519,13.98153374,151.24,151.21,4.66051125]
[1641502534521,41.64632374,151.24,151.2,4.66051125]
[1641502535421,41.64632374,151.24,151.18,4.66051125]
[1641502535622,13.98153374,151.22,151.18,4.66051125]
[1641502537723,22.41636746,151.22,151.19,4.66051125]
[1641502538525,27.66479,151.24,151.18,0.66696254]
[1641502538824,27.66479,151.24,151.16,27.66479]
[1641502538825,5.396,151.22,151.19,13.98012995]
[1641502539729,5.396,151.22,151.16,0.66696254]
[1641502540729,27.66479,151.21,151.16,0.66696254]
[1641502541029,4.0,151.2,151.16,0.66696254]
[1641502541232,35.66085443,151.21,151.19,4.66282185]
[1641502541432,31.66085443,151.21,151.15,5.55339097]
[1641502541729,35.66085443,151.21,151.15,5.55339097]
[1641502542130,4.0,151.19,151.15,5.55339097]
[1641502542432,4.0,151.18,151.1,0.66696254]
[1641502542630,27.66479,151.14,151.1,0.66696254]
[1641502543634,27.66479,151.16,151.1,0.66696254]
[1641502544836,27.66479,151.16,151.13,4.0]
[1641502545037,27.66479,151.16,151.08,0.66696254]
[1641502545234,36.76979,151.16,151.08,0.66696254]
[1641502545436,6.61266325,151.14,151.08,0.66696254]
[1641502546238,10.61266325,151.14,151.08,0.66696254]
[1641502546536,27.66479,151.1,151.08,0.66696254]
[1641502546748,33.17979,151.1,151.08,0.66696254]
[1641502547139,6.61528793,151.09,151.04,55.84186799]
[1641502547336,33.17979,151.1,151.0,92.9646992]
[1641502547337,33.17979,151.1,151.03,0.75012277]
[1641502548436,4.0,151.08,151.03,0.75012277]
[1641502548637,27.66479,151.07,151.01,4.0]
[1641502548837,27.66479,151.07,150.98,20.0]
[1641502549037,27.66479,151.1,151.06,4.0]
[1641502549238,27.66479,151.1,151.06,5.537]
[1641502549740,62.4063,151.13,151.06,5.537]
[1641502549940,6.61178882,151.16,151.06,9.537]
[1641502550140,107.51597384,151.17,151.06,5.537]
[1641502550339,103.51597384,151.17,151.04,4.0]
[1641502550541,27.66479,151.15,151.1,4.0]
[1641502550741,27.66479,151.15,151.1,9.085]
[1641502550942,27.66479,151.15,151.1,5.085]
[1641502551642,33.24079,151.15,151.1,5.085]
[1641502551841,33.24079,151.15,151.05,4.0]
[1641502552242,33.24079,151.15,151.06,4.0]
[1641502552843,33.24079,151.15,151.05,4.0]
[1641502553044,33.24079,151.15,151.06,4.0]
[1641502553243,33.24079,151.15,151.05,4.0]
[1641502553443,33.24079,151.15,151.06,4.0]
[1641502553844,33.24079,151.15,151.07,4.0]
[1641502554044,27.66479,151.15,151.07,4.0]
[1641502555345,27.66479,151.15,151.08,4.0]
[1641502555744,27.66479,151.15,151.04,57.34479]
[1641502555745,27.66479,151.15,151.06,4.0]
[1641502555946,34.54879,151.15,151.05,4.0]
[1641502556246,34.54879,151.15,151.04,37.34479]
[1641502556445,34.54879,151.15,151.03,73.02189348]
[1641502556446,34.54879,151.15,151.03,69.02189348]
[1641502556846,34.54879,151.15,151.03,78.76189348]
[1641502557046,34.54879,151.15,151.03,22.92002549]
[1641502557246,34.54879,151.15,151.03,13.74]
[1641502557749,38.54879,151.15,151.03,13.74]
[1641502558047,34.54879,151.15,151.03,13.74]
[1641502558246,4.0,151.13,151.03,13.74]
[1641502558448,4.0,151.13,151.03,9.74]
[1641502558749,27.66479,151.12,151.03,9.74]
[1641502559449,27.66479,151.12,151.02,9.94]
[1641502559649,31.66479,151.12,151.02,9.94]
[1641502559849,27.66479,151.12,151.02,9.94]
[1641502560251,31.66479,151.12,151.02,9.94]
[1641502560649,27.66479,151.12,151.02,9.94]
[1641502561051,27.66479,151.12,151.02,13.94]
[1641502561253,27.66479,151.12,151.03,4.0]
[1641502561550,37.18137384,151.11,151.04,4.0]
[1641502561752,4.0,151.06,151.02,5.34]
[1641502561950,4.0,151.04,151.02,5.34]
[1641502562150,4.0,151.03,150.97,27.66479]
[1641502562350,4.0,151.02,150.97,27.66479]
[1641502562754,27.66479,151.03,150.97,27.66479]
[1641502563451,64.84616384,151.03,150.97,27.66479]
[1641502564252,27.66479,151.03,150.97,27.66479]
[1641502566252,27.66479,151.03,150.98,4.0]
[1641502566452,27.66479,151.03,150.99,4.0]
[1641502566653,27.66479,151.05,150.99,4.0]
[1641502566852,37.18137384,151.06,151.03,27.66479]
[1641502567356,37.18137384,151.06,150.99,4.0]
[1641502567554,5.303,151.06,150.98,20.0]
[1641502567754,5.303,151.06,150.97,27.66479]
[1641502568154,5.303,151.06,150.98,4.0]
[1641502568654,5.303,151.06,150.99,4.0]
[1641502568854,5.303,151.06,151.0,27.66479]
[1641502569054,5.303,151.06,151.02,20.0]
[1641502569254,37.18137384,151.08,151.0,31.66479]
[1641502569454,13.99898596,151.05,151.0,31.66479]
[1641502569654,13.99898596,151.05,151.03,4.0]
[1641502569854,9.33616411,151.05,151.03,4.0]
[1641502570255,51.08227447,151.08,151.03,4.0]
[1641502570461,37.18137384,151.11,151.03,4.0]
[1641502570656,37.18137384,151.11,151.09,4.0]
[1641502570857,37.18137384,151.11,151.1,59.32958]
[1641502571057,37.18137384,151.11,151.1,55.32958]
[1641502571455,63.4024,151.18,151.1,55.32958]
[1641502571456,37.18137384,151.12,151.1,55.32958]
[1641502571656,37.18137384,151.12,151.1,59.32958]
[1641502572157,37.18137384,151.12,151.1,55.32958]
[1641502572357,37.18137384,151.15,151.1,55.32958]
[1641502573357,37.18137384,151.15,151.1,59.32958]
[1641502573558,37.18137384,151.15,151.1,55.32958]
[1641502573961,37.18137384,151.15,151.1,59.32958]
[1641502574359,37.18137384,151.16,151.1,59.32958]
[1641502577560,27.66479,151.2,151.1,59.32958]
[1641502577963,27.66479,151.2,151.1,55.32958]
[1641502578861,31.66479,151.2,151.1,55.32958]
[1641502579562,27.66479,151.2,151.1,55.32958]
[1641502580462,31.66479,151.2,151.1,55.32958]
[1641502580664,27.66479,151.2,151.1,55.32958]
[1641502580863,27.66479,151.2,151.13,27.66479]
[1641502582263,4.0,151.18,151.13,27.66479]
[1641502582464,10.069,151.18,151.1,27.66479]
[1641502582662,6.069,151.18,151.1,27.66479]
[1641502583265,10.069,151.18,151.1,27.66479]
[1641502583464,6.069,151.18,151.1,27.66479]
[1641502583665,10.069,151.18,151.1,27.66479]
[1641502584965,27.66479,151.17,151.1,27.66479]
[1641502587866,27.66479,151.17,151.07,10.16]
[1641502587867,4.0,151.19,151.07,10.16]
[1641502588369,4.0,151.18,151.08,0.65862558]
[1641502588568,7.97846264,151.18,151.08,0.65862558]
[1641502588868,27.66479,151.16,151.08,0.65862558]
[1641502589068,32.40479,151.16,151.08,0.65862558]
[1641502591069,66.6476,151.21,151.11,4.0]
[1641502591268,4.0,151.2,151.08,28.32341558]
[1641502591669,21.7783713,151.2,151.12,0.65862558]
[1641502591970,17.7783713,151.2,151.12,0.65862558]
[1641502592870,17.7783713,151.2,151.1,4.0]
[1641502593171,17.7783713,151.2,151.15,27.66479]
[1641502593771,17.7783713,151.21,151.16,0.65862558]
[1641502594773,17.7783713,151.21,151.13,6.60567427]
[1641502595072,17.7783713,151.21,151.17,31.66479]
[1641502595672,4.00075197,151.21,151.17,31.66479]
[1641502595875,4.00075197,151.23,151.18,0.66271531]
[1641502596072,4.00075197,151.23,151.18,4.66271531]
[1641502596975,4.00075197,151.23,151.21,27.66479]
[1641502597776,17.77184119,151.26,151.21,27.66479]
[1641502597977,17.77184119,151.26,151.19,4.0]
[1641502598577,17.77184119,151.26,151.22,0.6630384]
[1641502599378,54.95321503,151.28,151.19,28.3278284]
[1641502599579,4.603,151.26,151.19,28.3278284]
[1641502599978,8.603,151.26,151.19,28.3278284]
[1641502600685,13.98567844,151.24,151.2,0.6630384]
[1641502601281,13.98567844,151.24,151.17,13.98567844]
[1641502601481,13.98567844,151.22,151.16,27.66479]
[1641502601681,19.40167844,151.22,151.16,27.66479]
[1641502602483,4.00075197,151.21,151.18,4.66254255]
[1641502603184,13.98567844,151.22,151.18,4.66254255]
[1641502604181,13.98567844,151.22,151.17,0.66284486]
[1641502604182,13.98567844,151.22,151.19,4.66254255]
[1641502604985,13.98567844,151.23,151.2,4.66254255]
[1641502605785,13.98567844,151.25,151.21,4.66254255]
[1641502606584,13.98567844,151.25,151.22,4.66254255]
[1641502611088,13.98567844,151.24,151.21,4.66254255]
[1641502611889,13.98567844,151.25,151.21,4.66254255]
[1641502613089,13.98567844,151.25,151.22,27.66479]
[1641502613489,13.98567844,151.25,151.21,4.66254255]
[1641502613690,21.07567844,151.25,151.2,0.66284486]
[1641502613891,4.0,151.21,151.1,55.84186799]
[1641502614089,4.0,151.19,151.1,55.84186799]
[1641502614489,4.0,151.2,151.07,4.0]
[1641502614689,4.0,151.19,151.06,141.42947975]
[1641502614889,4.0,151.19,151.06,137.42947975]
[1641502615092,27.66479,151.18,151.08,27.66479]
[1641502616290,78.61725306,151.18,151.08,27.66479]
[1641502616892,4.0,151.17,151.06,27.66479]
[1641502617094,4.0,151.13,151.06,27.66479]
[1641502617294,5.883,151.13,151.06,27.66479]
[1641502618296,19.65408922,151.13,151.06,27.66479]
[1641502619396,5.883,151.13,151.06,27.66479]
[1641502622200,5.883,151.13,151.07,5.05510128]
[1641502622400,27.66479,151.14,151.07,5.05510128]
[1641502624903,27.66479,151.14,151.07,9.05510128]
[1641502625104,68.84616384,151.18,151.09,27.66479]
[1641502625304,64.84616384,151.18,151.09,27.66479]
[1641502626105,64.84616384,151.18,151.1,4.0]
[1641502626305,27.66479,151.18,151.1,9.05510128]
[1641502626906,27.66479,151.2,151.1,9.05510128]
[1641502627108,27.66479,151.2,151.14,4.0]
[1641502627306,61.7086,151.22,151.14,8.779]
[1641502628006,61.7086,151.22,151.14,13.83410128]
[1641502628706,61.7086,151.22,151.15,4.0]
[1641502628907,37.18137384,151.24,151.14,13.83410128]
[1641502629107,14.05900314,151.21,151.16,27.66479]
[1641502630007,14.05900314,151.24,151.16,27.66479]
[1641502630408,14.05900314,151.24,151.16,31.66479]
[1641502631710,14.05900314,151.24,151.2,4.0]
[1641502631910,14.05900314,151.24,151.21,20.0]
[1641502632511,14.05900314,151.24,151.19,4.0]
[1641502632710,37.18137384,151.27,151.2,4.0]
[1641502633110,37.18137384,151.27,151.21,27.66479]
[1641502634111,51.24037698,151.29,151.21,27.66479]
[1641502634309,51.24037698,151.29,151.21,4.0]
[1641502634510,51.24037698,151.29,151.2,4.0]
[1641502634711,51.24037698,151.29,151.21,4.0]
[1641502635111,14.05900314,151.29,151.22,27.66479]
[1641502635311,14.05900314,151.29,151.26,4.0]
[1641502635512,14.05900314,151.29,151.27,4.0]
[1641502635711,27.66479,151.33,151.28,24.0]
[1641502636014,51.33373665,151.32,151.29,4.0]
[1641502637314,55.84186799,151.36,151.29,4.0]
[1641502637514,62.4615,151.4,151.29,4.0]
[1641502637914,62.4615,151.4,151.3,4.0]
[1641502638115,59.84186799,151.43,151.3,11.228]
[1641502638315,55.84186799,151.43,151.3,11.228]
[1641502638517,59.84186799,151.43,151.3,7.228]
[1641502638716,55.84186799,151.43,151.34,4.0]
[1641502638915,67.7925,151.45,151.34,9.631]
[1641502638916,55.84186799,151.41,151.34,9.631]
[1641502639117,55.84186799,151.41,151.35,27.66479]
[1641502639617,55.84186799,151.41,151.35,31.66479]
[1641502640020,55.84186799,151.43,151.35,31.66479]
[1641502640419,55.84186799,151.43,151.36,4.0]
[1641502640620,55.84186799,151.43,151.37,20.0]
[1641502640820,55.84186799,151.43,151.37,24.0]
[1641502641120,55.84186799,151.43,151.41,27.66479]
[1641502641321,55.84186799,151.47,151.41,27.66479]
[1641502642724,75.08631445,151.48,151.41,27.66479]
[1641502643525,19.24444646,151.48,151.41,27.66479]
[1641502643726,19.24444646,151.48,151.4,6.642]
[1641502643925,19.24444646,151.48,151.37,20.0]
[1641502644326,19.24444646,151.48,151.36,68.1069]
[1641502644528,13.97034481,151.43,151.36,82.07724481]
[1641502644728,13.97034481,151.43,151.36,13.97034481]
[1641502645229,13.97034481,151.42,151.38,27.66479]
[1641502646130,13.97034481,151.41,151.38,27.66479]
[1641502646529,13.97034481,151.41,151.35,27.66479]
[1641502647134,13.97034481,151.37,151.35,27.66479]
[1641502647434,19.10534481,151.37,151.35,27.66479]
[1641502648037,5.135,151.37,151.35,27.66479]
[1641502648234,13.97034481,151.38,151.35,51.66479]
[1641502648434,55.84186799,151.46,151.37,4.0]
[1641502648834,55.84186799,151.46,151.36,10.989]
[1641502649035,64.8117,151.48,151.36,10.989]
[1641502649335,64.8117,151.48,151.41,27.66479]
[1641502650135,27.66479,151.49,151.41,27.66479]
[1641502651035,4.0,151.48,151.41,27.66479]
[1641502651636,4.0,151.48,151.35,47.66479]
[1641502651835,4.0,151.48,151.35,27.66479]
[1641502652036,4.0,151.47,151.35,27.66479]
[1641502652735,4.0,151.45,151.35,27.66479]
[1641502652936,4.0,151.44,151.35,27.66479]
[1641502653138,11.137,151.45,151.35,27.66479]
[1641502653336,27.66479,151.42,151.35,27.66479]
[1641502655539,3.39323289,151.41,151.36,1.26456208]
[1641502657141,4.0,151.4,151.36,6.208e-05]
[1641502657340,4.0,151.37,151.3,27.66479]
[1641502657540,4.0,151.37,151.28,27.66479]
[1641502657541,4.0,151.36,151.28,27.66479]
[1641502657741,6.581,151.37,151.28,27.66479]
[1641502657941,10.581,151.37,151.28,27.66479]
[1641502658341,6.581,151.37,151.28,27.66479]
[1641502659540,34.24579,151.37,151.28,27.66479]
[1641502659741,4.0,151.36,151.28,27.66479]
[1641502660142,4.0,151.35,151.28,27.66479]
[1641502660343,4.0,151.36,151.28,27.66479]
[1641502660541,4.0,151.35,151.28,27.66479]
[1641502660942,4.0,151.35,151.23,72.0858]
[1641502661144,72.345,151.35,151.23,72.0858]
[1641502661445,27.66479,151.33,151.25,27.66479]
[1641502661645,34.21279,151.33,151.25,27.66479]
[1641502662347,34.21279,151.33,151.26,6.62618797]
[1641502663850,27.66479,151.33,151.26,13.67818797]
[1641502664852,37.26135247,151.37,151.29,24.0]
[1641502665052,63.4139,151.38,151.31,4.0]
[1641502665253,37.26135247,151.4,151.31,9.88]
[1641502665453,37.26135247,151.4,151.36,27.66479]
[1641502665853,37.26135247,151.4,151.34,27.66479]
[1641502666053,73.91282316,151.43,151.34,27.66479]
[1641502666253,12.00732316,151.43,151.34,27.66479]
[1641502666753,16.00732316,151.43,151.34,27.66479]
[1641502667153,4.0,151.43,151.35,6.62618797]
[1641502667555,4.0,151.42,151.35,6.62618797]
[1641502667955,31.66479,151.44,151.35,6.62618797]
[1641502668156,31.66479,151.44,151.34,33.14379]
[1641502668157,12.00703017,151.43,151.34,33.14379]
[1641502669355,31.66479,151.46,151.35,6.62578579]
[1641502669856,27.66479,151.46,151.37,27.66479]
[1641502670259,12.00393993,151.45,151.37,27.66479]
[1641502671156,27.66479,151.46,151.37,27.66479]
[1641502671359,27.66479,151.46,151.38,6.62578579]
[1641502671957,31.66479,151.46,151.4,27.66479]
[1641502672157,27.66479,151.46,151.4,27.66479]
[1641502673362,27.66479,151.46,151.37,27.66479]
[1641502673562,32.71779,151.46,151.35,65.479]
[1641502674463,12.00414751,151.45,151.4,4.65748333]
[1641502676765,27.66479,151.46,151.43,4.65748333]
[1641502676966,27.66479,151.46,151.43,9.55648333]
[1641502677767,27.66479,151.46,151.45,4.65748333]
[1641502677969,164.36135247,151.52,151.45,32.32227333]
[1641502678171,37.26135247,151.52,151.46,4.0]
[1641502678968,13.96573399,151.5,151.47,4.65748333]
[1641502679168,13.96573399,151.5,151.47,10.24548333]
[1641502680069,13.96573399,151.52,151.48,4.65748333]
[1641502681169,13.96573399,151.5,151.47,5.588]
[1641502681571,13.96573399,151.5,151.46,4.65748333]
[1641502681968,13.96573399,151.51,151.47,4.65748333]
[1641502683869,4.0,151.48,151.46,4.65748333]
[1641502684070,13.96573399,151.5,151.46,4.65748333]
[1641502684071,41.63052399,151.5,151.46,4.65748333]
[1641502684870,13.96573399,151.47,151.44,4.65748333]
[1641502685872,13.96573399,151.48,151.44,4.65748333]
[1641502686071,13.96573399,151.48,151.45,27.66479]
[1641502686872,13.96573399,151.48,151.45,31.66479]
[1641502687072,13.96573399,151.49,151.46,4.65748333]
[1641502687872,13.96573399,151.49,151.48,4.65748333]
[1641502688072,13.96573399,151.51,151.48,39.47327333]
[1641502689272,13.96573399,151.52,151.48,39.47327333]
[1641502689772,13.96573399,151.52,151.48,43.47327333]
[1641502689974,13.96573399,151.52,151.51,27.66479]
[1641502690173,13.96573399,151.52,151.51,51.66479]
[1641502690174,4.65388387,151.52,151.51,51.66479]
[1641502690375,26.1075778,151.59,151.51,27.66479]
[1641502690778,26.1075778,151.59,151.51,51.66479]
[1641502691481,81.48790613,151.62,151.51,51.66479]
[1641502691482,64.5037,151.62,151.51,47.66479]
[1641502691678,4.0,151.64,151.51,27.66479]
[1641502691878,95.87779,151.63,151.51,27.66479]
[1641502692179,91.87779,151.63,151.51,27.66479]
[1641502692580,95.87779,151.63,151.51,27.66479]
[1641502692780,20.97728011,151.62,151.51,27.66479]
[1641502693079,16.97728011,151.62,151.51,27.66479]
[1641502693278,20.97728011,151.62,151.51,27.66479]
[1641502694280,16.97728011,151.62,151.53,4.0]
[1641502694480,16.97728011,151.62,151.53,8.945]
[1641502694681,16.97728011,151.62,151.53,4.945]
[1641502696083,16.97728011,151.62,151.54,27.66479]
[1641502696281,91.87779,151.63,151.54,27.66479]
[1641502697385,91.87779,151.63,151.55,1.40783469]
[1641502697583,3.24523514,151.62,151.55,1.40783469]
[1641502697783,4.0,151.61,151.55,1.40783469]
[1641502698383,3.24523514,151.6,151.54,27.66479]
[1641502699186,4.0,151.57,151.51,27.66479]
[1641502699685,4.0,151.57,151.47,66.4596]
[1641502699887,4.0,151.57,151.46,26.59130607]
[1641502700185,31.66479,151.57,151.49,27.66479]
[1641502700385,3.24523514,151.56,151.49,27.66479]
[1641502701187,3.24523514,151.56,151.5,1.40756512]
[1641502701886,4.0,151.55,151.5,1.40756512]
[1641502702087,4.0,151.54,151.5,1.40756512]
[1641502702286,34.04679,151.54,151.5,1.40756512]
[1641502702487,34.04679,151.54,151.43,27.66479]
[1641502702686,38.04679,151.54,151.43,27.66479]
[1641502702986,4.0,151.53,151.41,38.86975901]
[1641502703386,38.04679,151.54,151.41,38.86975901]
[1641502703987,38.04679,151.54,151.41,27.66479]
[1641502704387,4.0,151.53,151.41,27.66479]
[1641502704789,59.32958,151.54,151.41,27.66479]
[1641502706389,27.66479,151.51,151.41,27.66479]
[1641502709291,27.66479,151.51,151.41,38.86974418]
[1641502709492,27.66479,151.51,151.44,4.0]
[1641502709692,27.66479,151.51,151.44,10.064]
[1641502711094,27.66479,151.51,151.44,16.92022396]
[1641502712493,27.66479,151.51,151.45,4.0]
[1641502714896,27.66479,151.51,151.46,24.0]
[1641502715296,27.66479,151.51,151.46,30.59108885]
[1641502716097,27.66479,151.51,151.48,4.0]
[1641502716297,27.66479,151.51,151.48,9.977]
[1641502716798,64.6527,151.58,151.48,9.977]
[1641502717399,64.6527,151.58,151.48,16.56722011]
[1641502718402,64.6527,151.58,151.5,27.66479]
[1641502719505,11.75833449,151.57,151.5,27.66479]
[1641502720505,11.75833449,151.57,151.47,27.66479]
[1641502720706,17.19933449,151.57,151.47,27.66479]
[1641502721106,13.9627029,151.54,151.47,41.6274929]
[1641502721308,13.9627029,151.54,151.47,13.9627029]
[1641502721506,17.9627029,151.54,151.47,13.9627029]
[1641502722109,4.0,151.54,151.47,13.9627029]
[1641502722308,13.96389093,151.53,151.46,13.9627029]
[1641502722508,41.62868093,151.53,151.46,13.9627029]
[1641502723309,27.66479,151.53,151.46,13.9627029]
[1641502723510,13.96659639,151.5,151.44,10.08]
[1641502724309,13.96635996,151.51,151.44,30.89905849]
[1641502725510,13.96635996,151.5,151.44,10.08]
[1641502725809,19.91635996,151.5,151.43,41.6274929]
[1641502726009,19.91635996,151.5,151.43,13.9627029]
[1641502726209,5.95,151.5,151.43,13.9627029]
[1641502726610,27.66479,151.49,151.43,13.9627029]
[1641502728112,4.0,151.47,151.43,13.9627029]
[1641502728311,13.96849659,151.48,151.41,13.9627029]
[1641502728513,20.18549659,151.48,151.41,13.9627029]
[1641502729113,20.18549659,151.48,151.41,17.9627029]
[1641502729314,6.217,151.48,151.43,13.9627029]
[1641502729514,13.96749299,151.5,151.43,13.9627029]
[1641502730518,17.96749299,151.52,151.45,13.9627029]
[1641502730717,27.66479,151.5,151.45,13.9627029]
[1641502731418,27.66479,151.5,151.44,13.9627029]
[1641502732218,41.63228299,151.5,151.43,13.9627029]
[1641502732617,41.63228299,151.5,151.43,41.6274929]
[1641502733219,27.66479,151.5,151.44,20.81908989]
[1641502734319,41.6312534,151.5,151.43,13.9627029]
[1641502735321,27.66479,151.5,151.44,13.9627029]
[1641502736220,41.6312534,151.5,151.43,13.9627029]
[1641502737121,27.66479,151.5,151.44,13.9627029]
[1641502738222,41.63101154,151.5,151.44,13.9627029]
[1641502739230,4.0,151.52,151.44,13.9627029]
[1641502739426,10.59608852,151.52,151.44,13.9627029]
[1641502740227,10.59608852,151.52,151.43,13.9627029]
[1641502740228,13.96676179,151.5,151.43,13.9627029]
[1641502740727,27.66479,151.49,151.43,13.9627029]
[1641502741128,4.0,151.48,151.43,13.9627029]
[1641502741328,8.863,151.48,151.43,13.9627029]
[1641502741928,8.863,151.48,151.42,13.9627029]
[1641502742128,4.863,151.48,151.42,13.9627029]
[1641502742629,27.66479,151.45,151.42,13.9627029]